Workbook

Sheet Instructions
A1: How to use this tool
A5: Introduction: This tool is intended to be used in order to compare the costs of buying, running and servicing a water scheme with a diesel generator vs an equivalent stand alone solar pumping solution.
A6: Costs are estimated for a period of 25 years (lifespan of solar panels, the longest of all components).
A7: Costs that are common for both systems (e.g. salary of a guard for the water scheme) have been taken out, since they would have no impact in the cost comparision analysis.
A8: Costs are calculated including pumping equipement (pump, genertor, solar panels, invertor and accessories). By adding additional columns, other costs could be included in the analysis if necessary.
A9: Before proceeding to use the tool, read the Word document 'Technical Briefing - Ecoonomic Assessment', where principles of Net Present Value analysis are explained.
A11: Tab 0: 'EXAMPLE'
A12: An example of a real field case with costs for solar and generator system components is given an worked out through Tabs 3 to 5
A15: Tab 1: 'Reference Costs for Generators'
A16: Costs of Generators are given on table on the left. Get prices of generators for your particular country/ location
A18: Cost of Generator servicing is given on table on the right. Different servicing costs are given depending on the working hours of the generator and the quality of brand (high or low).
A19: Thee prices are used in the cost calculation under tab 'Generator System'. Use these prices as a reference, unless you have a more accurate information on the costs for mainting a generator in your location.
A22: Tab 2: 'Generator Fuel Consumption'
A23: This table is a refernce for fuel consumption. Iedally your generator should be sized to work at 75% of its load and so you should use fuel consumption data from the 75% column.
A24: If this is not the case or you have real data from the field, feel free to use the consumption you believe is closer to reality. This data will be used in tab 'Generator System'.
A27: Tab 3: 'Generator System'
A28: In this tab total costs for buying, operating, maintaing and replacing the generator will be estimated for a period of 25 years.
A29: Fill only the cells in yellow.
A30: Get discount factor for your country at http://data.worldbank.org/indicator/FR.INR.RINR?year_high_desc=false or in the Annex a of the Word document 'Technical Briefing - Economic Assessment'.
A31: The cost of 1L of fuel should compromise costs to buy, store and transport fuel to the water scheme site.
A34: Tab 4: 'Solar System'
A35: In this tab total costs for buying, operating, maintaing and replacing the solar pumping system will be estimated for a period of 25 years.
A36: Fill only the cells in yellow.
A37: Cost of Solar Pumpin gsolution should include all costs involved to buy and install the solar system (including invertor).
A38: Preventive and minor service (like cleaning and 1 or 2 visits of contractor technician to the field for preventive maintenance) is estimated at a flat rate of 1,500USD. Feel free to change I ncase rea ldata are avaible.
A41: Tab 5: 'Graph'
A42: A comparative graph is automatically generated. Get the Return on Investment (point were both lines cross) and the costs saving (difference between the 2 lines after 25 years) as main information.

Sheet 0 EXAMPLE
A4: DIESEL GENERATOR STAND ALONE SYSTEM | I4: EQUIVALENT SOLAR STAND ALONE SYSTEM
A6: Component | D6: Unit | E6: Qty | F6: Total Price (USD) | I6: Component | K6: Unit | L6: Qty | M6: Unit Price | N6: Total Price (USD)
A7: Pump | D7: Watt | E7: 7500 | F7: =N7 -> 4878.571429 | I7: Pump | K7: Watt | L7: 7500 | M7: 0.6504761905 | N7: =M7*L7 -> 4878.571429
A8: Generator | D8: kVA | E8: 20 | F8: =9500 -> 9500 | I8: Inverter | K8: Watt | L8: =L7 -> 7500 | M8: 0.27 | N8: =M8*L8 -> 2025
A9: Electrical Connection Board | D9: Unit | E9: 1 | F9: 1850 | I9: Solar Modules | K9: Watt | L9: 14580 | M9: 0.9920634921 | N9: 14464.28571
A10: Cables & Low level | D10: m | E10: 150 | F10: =1400 -> 1400 | I10: DC Accessories | K10: Watt | L10: =L9 -> 14580 | M10: 0.1635238095 | N10: 2384.177143
A11: Transport | D11: km | E11: =785*2 -> 1570 | F11: 2700 | I11: Cables & Low level | K11: m | L11: 150 | M11: 11.77380952 | N11: 1766.071429
A12: Installation | D12: Day | E12: 2 | F12: =(5600/14)*2 -> 800 | I12: Support Structure | K12: Watt | L12: =L9 -> 14580 | M12: 0.2469047619 | N12: 3599.871429
A13: Total Price | F13: =SUM(F7:F12) -> 21128.57143 | I13: Transport | K13: km | L13: =785*2 -> 1570 | M13: 2.28 | N13: 3579.6
I14: Installation | K14: Day | L14: 14 | M14: 400 | N14: 5600
I15: Total Price | N15: =SUM(N7:N14) -> 38297.57714
A16: Discount factor in country A = 12%
A17: Cost of 1 liter of diesel in USD: | D17: 1.1 | I17: Discount factor in country A = 12%
A18: Consumption of diesel (l/h) | D18: 4.2 | I18: Consumption of diesel (l/h) | K18: 0
A19: Running time of generator (hours/day): | D19: 6.5 | I19: Running time of generator (hours/day): | K19: 0
A20: Safe Yield (m3/h): | D20: 20 | I20: Running time of solar (hours/day): | K20: 8h to 17h
A21: Daily water provided (m3/d): | D21: 130 | I21: Safe Yield (m3/h): | K21: 20
I22: Daily water provided with solar (m3/h): | K22: 130
I23: Daily water provided with generator (m3/h): | K23: 0

Sheet 1 Reference Cost for Generators
A1: Diesel Genset (Indicate Brand) | C1: Prices in SS (USD) | E1: General Reference for Maintenance of Gensets
A2: 12.5 | B2: kVA | C2: 4500
A3: 15 | B3: kVA | C3: 7000 | E3: Genset Maintenance | F3: Good Quality Engine | H3: Low Quality Engine
A4: 20 | B4: kVA | C4: 10000 | E4: Maintenance and Replacement | F4: Frequency of change (h) | G4: Price (USD) | H4: Frequency (hours) | I4: Price (USD)
A5: 30 | B5: kVA | C5: 12000 | E5: Minor Service | F5: 250 | G5: 20 | H5: 250 | I5: 20
A6: 45 | B6: kVA | C6: 15000 | E6: Major Service | F6: 1000 | G6: 180 | H6: 1000 | I6: 125
A7: 65 | B7: kVA | C7: 20000 | E7: Overhaul | F7: 10000 | G7: 30% of new | H7: 5000 | I7: 60% of new
A8: 80 | B8: kVA | C8: 30000 | E8: Replacement | F8: 35000 | G8: See 'Cost of New Gensets' | H8: 10000 | I8: See 'Cost of New Gensets'
A9: 100 | B9: kVA | C9: 40000

Sheet 2 Generator Fuel Consumption
A1: Genset Fuel Consumption chart
A2: Generator | C2: Liter/hour
A3: kVA | B3: kW | C3: Load 25% | D3: Load 50% | E3: Load 75% | F3: Load 100%
A4: 25 | B4: =A4*0.8 -> 20 | C4: 2.3 | D4: 3.4 | E4: 4.9 | F4: 6
A5: 38 | B5: 30.4 | C5: 4.2 | D5: 6.8 | E5: 9.1 | F5: 11
A6: 50 | B6: 40 | C6: 6 | D6: 8.7 | E6: 12.1 | F6: 15.1
A7: 75 | B7: 60 | C7: 6.8 | D7: 11 | E7: 14.4 | F7: 18.1
A8: 94 | B8: 75.2 | C8: 9.1 | D8: 12.9 | E8: 17.4 | F8: 23.1
A9: 125 | B9: 100 | C9: 9.8 | D9: 15.5 | E9: 21.9 | F9: 28
A10: 156 | B10: 124.8 | C10: 11.7 | D10: 18.9 | E10: 26.8 | F10: 34.4
A11: 169 | B11: 135.2 | C11: 12.5 | D11: 20.4 | E11: 28.7 | F11: 37
A12: 188 | B12: 150.4 | C12: 13.6 | D12: 22.3 | E12: 31.8 | F12: 41.2
A13: 219 | B13: 175.2 | C13: 15.5 | D13: 25.7 | E13: 36.7 | F13: 48
A14: 250 | B14: 200 | C14: 17.1 | D14: 29.1 | E14: 41.6 | F14: 54.4
A15: 288 | B15: 230.4 | C15: 20 | D15: 33.3 | E15: 47.3 | F15: 62.7
A16: 313 | B16: 250.4 | C16: 21.6 | D16: 35.9 | E16: 51.4 | F16: 68
A17: 375 | B17: 300 | C17: 25.7 | D17: 42.7 | E17: 60.9 | F17: 81.3
A18: 438 | B18: 350.4 | C18: 29.9 | D18: 49.5 | E18: 70.7 | F18: 94.9
A19: 500 | B19: 400 | C19: 33.6 | D19: 56.3 | E19: 80.5 | F19: 108.1
A20: 625 | B20: 500 | C20: 41.6 | D20: 69.9 | E20: 99.8 | F20: 134.9
A21: 750 | B21: 600 | C21: 49.9 | D21: 83.2 | E21: 119.1 | F21: 161.8
A22: 938 | B22: 750.4 | C22: 61.6 | D22: 103.6 | E22: 148.6 | F22: 201.9
A23: 1250 | B23: 1000 | C23: 81.6 | D23: 137.6 | E23: 196.9 | F23: 268.8
A24: 1563 | B24: 1250.4 | C24: 101.7 | D24: 171.2 | E24: 245.7 | F24: 335.7
A25: 1875 | B25: 1500 | C25: 121.7 | D25: 205.3 | E25: 294.1 | F25: 402.6
A26: 2188 | B26: 1750.4 | C26: 141.8 | D26: 238.9 | E26: 342.8 | F26: 469.5
A27: 2500 | B27: 2000 | C27: 161.8 | D27: 272.9 | E27: 391.5 | F27: 536.4
A28: 2813 | B28: 2250.4 | C28: 181.8 | D28: 306.6 | E28: 440 | F28: 603.3

Sheet 3 Generator System
A1: Discount factor (d) | B1: 0.12
A2: Capital Cost of Generator (USD) | B2: 9500
A3: Cost of total Generator System (including capita cost of generator, transport, installation and others) | B3: 21129
A4: Cost of 1 L of fuel (USD) | B4: 1.1
A5: Year | B5: Cost of total generator system | C5: Generator Working time (hours/year) | D5: Cumulative hours for overhaul | E5: Cumulative hours for replacement | F5: Minor Service | G5: Major Service | H5: Fuel Consumption (l/h) | I5: Cost of fuel | J5: Overhaul | K5: Replacement | L5: Pr Factor | M5: Total Costs in Present Worth (USD)
F6: 20 USD every 250h | G6: 180 USD every 1000h | J6: 30% genset cost every 10,000h | K6: New genset every 35,000h | L6: Pr = 1/(1+d)N | M6: PW = Cr*Pr
A7: 0 | B7: =B3 -> 21129 | C7: =6.5*365 -> 2372.5 | D7: =C7 -> 2372.5 | E7: =C7 -> 2372.5 | F7: =(C7/250)*20 -> 189.8 | G7: =(C7/1000)*180 -> 427.05 | H7: 4.2 | I7: =C7*H7*B4 -> 10960.95 | L7: =1/(1+$B$1)^A7 -> 1 | M7: =L7*(B7+F7+G7+I7+J7+K7) -> 32706.8
A8: 1 | C8: =C7 -> 2372.5 | D8: =IF(K8=0,IF(D7+C8>10000,D7+C8-10000,D7+C8),E8) -> 4745 | E8: =IF(E7+C8>35000,E7+C8-35000,E7+C8) -> 4745 | F8: 189.8 | G8: 427.05 | I8: =I7 -> 10960.95 | J8: =IF($D7+$C8>10000,$B$2*0.3,0) -> 0 | K8: =IF($E7+$C8>35000,$B$2,0) -> 0 | L8: 0.8928571429 | M8: =L8*(F8+G8+I8+J8+K8) -> 10337.32143
A9: 2 | C9: =C8 -> 2372.5 | D9: 7117.5 | E9: 7117.5 | F9: 189.8 | G9: 427.05 | I9: =I8 -> 10960.95 | J9: =IF($D8+$C9>10000,$B$2*0.3,0) -> 0 | K9: =IF($E8+$C9>35000,$B$2,0) -> 0 | L9: 0.7971938776 | M9: 9229.751276
A10: 3 | C10: 2372.5 | D10: 9490 | E10: 9490 | F10: 189.8 | G10: 427.05 | I10: 10960.95 | J10: 0 | K10: 0 | L10: 0.7117802478 | M10: 8240.849353
A11: 4 | C11: 2372.5 | D11: 1862.5 | E11: 11862.5 | F11: 189.8 | G11: 427.05 | I11: 10960.95 | J11: 2850 | K11: 0 | L11: 0.6355180784 | M11: 9169.127732
A12: 5 | C12: 2372.5 | D12: 4235 | E12: 14235 | F12: 189.8 | G12: 427.05 | I12: 10960.95 | J12: 0 | K12: 0 | L12: 0.5674268557 | M12: 6569.55465
A13: 6 | C13: 2372.5 | D13: 6607.5 | E13: 16607.5 | F13: 189.8 | G13: 427.05 | I13: 10960.95 | J13: 0 | K13: 0 | L13: 0.5066311212 | M13: 5865.673795
A14: 7 | C14: 2372.5 | D14: 8980 | E14: 18980 | F14: 189.8 | G14: 427.05 | I14: 10960.95 | J14: 0 | K14: 0 | L14: 0.4523492153 | M14: 5237.208745
A15: 8 | C15: 2372.5 | D15: 1352.5 | E15: 21352.5 | F15: 189.8 | G15: 427.05 | I15: 10960.95 | J15: 2850 | K15: 0 | L15: 0.403883228 | M15: 5827.146437
A16: 9 | C16: 2372.5 | D16: 3725 | E16: 23725 | F16: 189.8 | G16: 427.05 | I16: 10960.95 | J16: 0 | K16: 0 | L16: 0.360610025 | M16: 4175.070747
A17: 10 | C17: 2372.5 | D17: =IF(K17=0,IF(D16+C17>10000,D16+C17-10000,D16+C17),E17) -> 6097.5 | E17: 26097.5 | F17: 189.8 | G17: 427.05 | I17: 10960.95 | J17: 0 | K17: 0 | L17: 0.3219732366 | M17: 3727.741739
A18: 11 | C18: 2372.5 | D18: 8470 | E18: 28470 | F18: 189.8 | G18: 427.05 | I18: 10960.95 | J18: 0 | K18: 0 | L18: 0.2874761041 | M18: 3328.340838
A19: 12 | C19: 2372.5 | D19: 842.5 | E19: 30842.5 | F19: 189.8 | G19: 427.05 | I19: 10960.95 | J19: 2850 | K19: 0 | L19: 0.2566750929 | M19: 3703.256906
A20: 13 | C20: 2372.5 | D20: 3215 | E20: 33215 | F20: 189.8 | G20: 427.05 | I20: 10960.95 | J20: 0 | K20: 0 | L20: 0.2291741901 | M20: 2653.332938
A21: 14 | C21: 2372.5 | D21: 587.5 | E21: 587.5 | F21: 189.8 | G21: 427.05 | I21: 10960.95 | J21: 0 | K21: 9500 | L21: 0.2046198126 | M21: 4312.935486
A22: 15 | C22: 2372.5 | D22: 2960 | E22: 2960 | F22: 189.8 | G22: 427.05 | I22: 10960.95 | J22: 0 | K22: 0 | L22: 0.1826962613 | M22: 2115.220774
A23: 16 | C23: 2372.5 | D23: 5332.5 | E23: 5332.5 | F23: 189.8 | G23: 427.05 | I23: 10960.95 | J23: 0 | K23: 0 | L23: 0.1631216618 | M23: 1888.589976
A24: 17 | C24: 2372.5 | D24: 7705 | E24: 7705 | F24: 189.8 | G24: 427.05 | I24: 10960.95 | J24: 0 | K24: 0 | L24: 0.1456443409 | M24: 1686.24105
A25: 18 | C25: 2372.5 | D25: 77.5 | E25: 10077.5 | F25: 189.8 | G25: 427.05 | I25: 10960.95 | J25: 2850 | K25: 0 | L25: 0.1300395901 | M25: 1876.185198
A26: 19 | C26: 2372.5 | D26: 2450 | E26: 12450 | F26: 189.8 | G26: 427.05 | I26: 10960.95 | J26: 0 | K26: 0 | L26: 0.1161067769 | M26: 1344.261041
A27: 20 | C27: 2372.5 | D27: 4822.5 | E27: 14822.5 | F27: 189.8 | G27: 427.05 | I27: 10960.95 | J27: 0 | K27: 0 | L27: 0.1036667651 | M27: 1200.233073
A28: 21 | C28: 2372.5 | D28: 7195 | E28: 17195 | F28: 189.8 | G28: 427.05 | I28: 10960.95 | J28: 0 | K28: 0 | L28: 0.09255961168 | M28: 1071.636672
A29: 22 | C29: 2372.5 | D29: 9567.5 | E29: 19567.5 | F29: 189.8 | G29: 427.05 | I29: 10960.95 | J29: 0 | K29: 0 | L29: 0.08264251043 | M29: 956.8184572
A30: 23 | C30: 2372.5 | D30: 1940 | E30: 21940 | F30: 189.8 | G30: 427.05 | I30: 10960.95 | J30: 2850 | K30: 0 | L30: 0.07378795574 | M30: 1064.597868
A31: 24 | C31: 2372.5 | D31: 4312.5 | E31: 24312.5 | F31: 189.8 | G31: 427.05 | I31: 10960.95 | J31: 0 | K31: 0 | L31: 0.06588210334 | M31: 762.769816
L33: TOTAL COST | M33: =SUM(M7:M32) -> 129050.666

Sheet 4 Solar System
A1: Discount factor (d) | B1: 0.12
A2: Cost of solar pumping solution (USD) | B2: 38298
A3: Cost of Invertor (USD) | B3: 2025
A4: Year | B4: Capital Cost | C4: Preventive and Minor Service and | D4: Major Service | E4: Fuel Consumption (l/h) | F4: Cost of fuel | G4: Overhaul | H4: Replacement of Invertor | I4: Pr Factor | J4: Total Costs in Present Worth (USD)
C5: Cleaning | D5: _ | G5: _ | H5: Every 7 years | I5: Pr = 1/(1+d)^N | J5: PW = Cr*Pr
A6: 0 | B6: =B2 -> 38298 | C6: 1500 | D6: 0 | E6: 0 | F6: 0 | I6: =1/(1+$B$1)^A6 -> 1 | J6: =I6*(B6+C6+D6+F6+G6+H6) -> 39798
A7: 1 | C7: =C6 -> 1500 | D7: =D6 -> 0 | F7: =F6 -> 0 | I7: =1/(1+$B$1)^A7 -> 0.8928571429 | J7: =I7*(C7+D7+F7+G7+H7) -> 1339.285714
A8: 2 | C8: =C7 -> 1500 | D8: =D7 -> 0 | F8: =F7 -> 0 | I8: 0.7971938776 | J8: 1195.790816
A9: 3 | C9: 1500 | D9: 0 | F9: 0 | I9: 0.7117802478 | J9: 1067.670372
A10: 4 | C10: 1500 | D10: 0 | F10: 0 | I10: 0.6355180784 | J10: 953.2771176
A11: 5 | C11: 1500 | D11: 0 | F11: 0 | I11: 0.5674268557 | J11: 851.1402836
A12: 6 | C12: 1500 | D12: 0 | F12: 0 | H12: =B3 -> 2025 | I12: 0.5066311212 | J12: 1785.874702
A13: 7 | C13: 1500 | D13: 0 | F13: 0 | I13: 0.4523492153 | J13: 678.523823
A14: 8 | C14: 1500 | D14: 0 | F14: 0 | I14: 0.403883228 | J14: 605.824842
A15: 9 | C15: 1500 | D15: 0 | F15: 0 | I15: 0.360610025 | J15: 540.9150375
A16: 10 | C16: 1500 | D16: 0 | F16: 0 | I16: 0.3219732366 | J16: 482.9598549
A17: 11 | C17: 1500 | D17: 0 | F17: 0 | I17: 0.2874761041 | J17: 431.2141561
A18: 12 | C18: 1500 | D18: 0 | F18: 0 | I18: 0.2566750929 | J18: 385.0126394
A19: 13 | C19: 1500 | D19: 0 | F19: 0 | H19: =B3 -> 2025 | I19: 0.2291741901 | J19: 807.8390202
A20: 14 | C20: 1500 | D20: 0 | F20: 0 | I20: 0.2046198126 | J20: 306.9297189
A21: 15 | C21: 1500 | D21: 0 | F21: 0 | I21: 0.1826962613 | J21: 274.0443919
A22: 16 | C22: 1500 | D22: 0 | F22: 0 | I22: 0.1631216618 | J22: 244.6824928
A23: 17 | C23: 1500 | D23: 0 | F23: 0 | I23: 0.1456443409 | J23: 218.4665114
A24: 18 | C24: 1500 | D24: 0 | F24: 0 | I24: 0.1300395901 | J24: 195.0593852
A25: 19 | C25: 1500 | D25: 0 | F25: 0 | I25: 0.1161067769 | J25: 174.1601653
A26: 20 | C26: 1500 | D26: 0 | F26: 0 | I26: 0.1036667651 | J26: 155.5001476
A27: 21 | C27: 1500 | D27: 0 | F27: 0 | H27: =B3 -> 2025 | I27: 0.09255961168 | J27: 326.2726312
A28: 22 | C28: 1500 | D28: 0 | F28: 0 | I28: 0.08264251043 | J28: 123.9637656
A29: 23 | C29: 1500 | D29: 0 | F29: 0 | I29: 0.07378795574 | J29: 110.6819336
A30: 24 | C30: 1500 | D30: 0 | F30: 0 | I30: 0.06588210334 | J30: 98.82315501
I32: TOTAL COST | J32: =SUM(J6:J31) -> 53151.91268

Sheet 5 Graph
A1: Cumulative Cost
A3: Year | B3: Generator | C3: Solar
A4: 0 | B4: ='3 Generator System'!B7 -> 21129 | C4: ='4 Solar System'!B6 -> 38298
A5: 1 | B5: ='3 Generator System'!M7 -> 32706.8 | C5: ='4 Solar System'!J6 -> 39798
A6: 2 | B6: =B5+'3 Generator System'!M8 -> 43044.12143 | C6: =C5+'4 Solar System'!J7 -> 41137.28571
A7: 3 | B7: =B6+'3 Generator System'!M9 -> 52273.8727 | C7: =C6+'4 Solar System'!J8 -> 42333.07653 | M7: Costs saved with solar after 5 years: | P7: =B9-C9 -> 25329.82577
A8: 4 | B8: =B7+'3 Generator System'!M10 -> 60514.72206 | C8: =C7+'4 Solar System'!J9 -> 43400.7469
A9: 5 | B9: =B8+'3 Generator System'!M11 -> 69683.84979 | C9: =C8+'4 Solar System'!J10 -> 44354.02402 | M9: Costs saved with solar after 10 years: | P9: =B14-C14 -> 48542.20145
A10: 6 | B10: =B9+'3 Generator System'!M12 -> 76253.40444 | C10: =C9+'4 Solar System'!J11 -> 45205.1643
A11: 7 | B11: =B10+'3 Generator System'!M13 -> 82119.07823 | C11: =C10+'4 Solar System'!J12 -> 46991.03901 | M11: Costs saved with solar after 25 years: | P11: =B29-C29 -> 75898.75332
A12: 8 | B12: =B11+'3 Generator System'!M14 -> 87356.28698 | C12: =C11+'4 Solar System'!J13 -> 47669.56283
A13: 9 | B13: =B12+'3 Generator System'!M15 -> 93183.43342 | C13: =C12+'4 Solar System'!J14 -> 48275.38767
A14: 10 | B14: =B13+'3 Generator System'!M16 -> 97358.50416 | C14: =C13+'4 Solar System'!J15 -> 48816.30271
A15: 11 | B15: =B14+'3 Generator System'!M17 -> 101086.2459 | C15: =C14+'4 Solar System'!J16 -> 49299.26256
A16: 12 | B16: =B15+'3 Generator System'!M18 -> 104414.5867 | C16: =C15+'4 Solar System'!J17 -> 49730.47672
A17: 13 | B17: =B16+'3 Generator System'!M19 -> 108117.8436 | C17: =C16+'4 Solar System'!J18 -> 50115.48936
A18: 14 | B18: =B17+'3 Generator System'!M20 -> 110771.1766 | C18: =C17+'4 Solar System'!J19 -> 50923.32838
A19: 15 | B19: =B18+'3 Generator System'!M21 -> 115084.1121 | C19: =C18+'4 Solar System'!J20 -> 51230.2581
A20: 16 | B20: =B19+'3 Generator System'!M22 -> 117199.3328 | C20: =C19+'4 Solar System'!J21 -> 51504.30249
A21: 17 | B21: =B20+'3 Generator System'!M23 -> 119087.9228 | C21: =C20+'4 Solar System'!J22 -> 51748.98498
A22: 18 | B22: =B21+'3 Generator System'!M24 -> 120774.1639 | C22: =C21+'4 Solar System'!J23 -> 51967.45149
A23: 19 | B23: =B22+'3 Generator System'!M25 -> 122650.3491 | C23: =C22+'4 Solar System'!J24 -> 52162.51088
A24: 20 | B24: =B23+'3 Generator System'!M26 -> 123994.6101 | C24: =C23+'4 Solar System'!J25 -> 52336.67104
A25: 21 | B25: =B24+'3 Generator System'!M27 -> 125194.8432 | C25: =C24+'4 Solar System'!J26 -> 52492.17119
A26: 22 | B26: =B25+'3 Generator System'!M28 -> 126266.4799 | C26: =C25+'4 Solar System'!J27 -> 52818.44382
A27: 23 | B27: =B26+'3 Generator System'!M29 -> 127223.2983 | C27: =C26+'4 Solar System'!J28 -> 52942.40759
A28: 24 | B28: =B27+'3 Generator System'!M30 -> 128287.8962 | C28: =C27+'4 Solar System'!J29 -> 53053.08952
A29: 25 | B29: =B28+'3 Generator System'!M31 -> 129050.666 | C29: =C28+'4 Solar System'!J30 -> 53151.91268
